[Event "*** Titled Tuesday Blitz"]
[Site "Chess.com"]
[Date "2018.04.03"]
[Round "2"]
[White "RichardABates"]
[Black "DrZeiss"]
[Result "1-0"]
[WhiteElo "2131"]
[BlackElo "2204"]
[TimeControl "180+2"]
[EndTime "13:21:05 PDT"]
[Termination "RichardABates won by resignation"]

1. d4 {[%clk 0:02:30.2]} 1... Nf6 {[%clk 0:02:59.2]} 2. Nf3 {[%clk 0:02:30.6]}
2... c5 {[%clk 0:02:59.7]} 3. d5 {[%clk 0:02:31.3]} 3... e6 {[%clk 0:03:00.4]}
4. c4 {[%clk 0:02:31.3]} 4... exd5 {[%clk 0:03:01.1]} 5. cxd5 {[%clk 0:02:32.4]}
5... d6 {[%clk 0:03:03]} 6. e4 {[%clk 0:02:33.5]} 6... Nxe4 {[%clk 0:03:02.9]}
7. Qa4+ {[%clk 0:02:33.4]} 7... Nd7 {[%clk 0:02:54.1]} 8. Qxe4+ {[%clk
0:02:33.4]} 8... Be7 {[%clk 0:02:55]} 9. Bd3 {[%clk 0:02:29.8]} 9... Nf6 {[%clk
0:02:54]} 10. Qe2 {[%clk 0:02:21.5]} 10... O-O {[%clk 0:02:49.6]} 11. Nc3 {[%clk
0:02:16.4]} 11... a6 {[%clk 0:02:49.3]} 12. a4 {[%clk 0:02:15.4]} 12... b6
{[%clk 0:02:50.1]} 13. O-O {[%clk 0:02:15.9]} 13... Bb7 {[%clk 0:02:51]} 14. Bc4
{[%clk 0:02:09]} 14... Re8 {[%clk 0:02:51]} 15. h3 {[%clk 0:02:04.2]} 15... Qc7
{[%clk 0:02:36.5]} 16. Bg5 {[%clk 0:01:51.8]} 16... h6 {[%clk 0:02:34.6]} 17.
Bh4 {[%clk 0:01:51.1]} 17... Nxd5 {[%clk 0:02:22.2]} 18. Nxd5 {[%clk 0:01:47.6]}
18... Bxd5 {[%clk 0:02:20.8]} 19. Bxd5 {[%clk 0:01:48.5]} 19... Bxh4 {[%clk
0:02:21.2]} 20. Qc4 {[%clk 0:01:47.2]} 20... b5 {[%clk 0:02:18.7]} 21. Qxh4
{[%clk 0:01:46.4]} 21... Rab8 {[%clk 0:02:12.9]} 22. Rfe1 {[%clk 0:01:46.4]}
22... c4 {[%clk 0:02:10.8]} 23. axb5 {[%clk 0:01:45.2]} 23... axb5 {[%clk
0:02:11]} 24. Rxe8+ {[%clk 0:01:44.2]} 24... Rxe8 {[%clk 0:02:10.7]} 25. Ra8
{[%clk 0:01:44.4]} 25... Rxa8 {[%clk 0:02:08.1]} 26. Bxa8 {[%clk 0:01:44.8]}
26... Qa5 {[%clk 0:01:49.8]} 27. Be4 {[%clk 0:01:39.7]} 27... b4 {[%clk
0:01:42.3]} 28. Qe7 {[%clk 0:01:37.1]} 28... g6 {[%clk 0:01:40.6]} 29. Qxd6
{[%clk 0:01:28.6]} 29... Qa1+ {[%clk 0:01:40.4]} 30. Kh2 {[%clk 0:01:28.4]}
30... Qxb2 {[%clk 0:01:42.3]} 31. Qd4 {[%clk 0:01:20.9]} 31... Qxd4 {[%clk
0:01:40.9]} 32. Nxd4 {[%clk 0:01:21.6]} 32... Kg7 {[%clk 0:01:38.8]} 33. Bd5
{[%clk 0:01:19.4]} 33... c3 {[%clk 0:01:38.8]} 34. Nc2 {[%clk 0:01:19.7]} 34...
Kf6 {[%clk 0:01:33.1]} 35. Nxb4 {[%clk 0:01:19.9]} 35... Ke5 {[%clk 0:01:34]}
36. Bb3 {[%clk 0:01:20.2]} 36... f5 {[%clk 0:01:26.8]} 37. Kg3 {[%clk
0:01:20.2]} 37... g5 {[%clk 0:01:27.3]} 38. Kf3 {[%clk 0:01:20.2]} 38... Kd4
{[%clk 0:01:27.8]} 39. Ke2 {[%clk 0:01:18.3]} 39... f4 {[%clk 0:01:27]} 40. Nc2+
{[%clk 0:01:18.5]} 40... Kc5 {[%clk 0:01:24.3]} 41. Kd3 {[%clk 0:01:18.8]} 1-0

[Event "*** Titled Tuesday Blitz"]
[Site "Chess.com"]
[Date "2018.04.03"]
[Round "2"]
[White "2Tilted"]
[Black "Margency"]
[Result "0-1"]
[WhiteElo "2280"]
[BlackElo "2576"]
[TimeControl "180+2"]
[EndTime "13:21:06 PDT"]
[Termination "Margency won by resignation"]

1. d4 {[%clk 0:03:01.9]} 1... Nf6 {[%clk 0:03:00.7]} 2. Nf3 {[%clk 0:03:02.6]}
2... g6 {[%clk 0:03:02.1]} 3. c4 {[%clk 0:03:03.1]} 3... Bg7 {[%clk 0:03:03.3]}
4. Nc3 {[%clk 0:03:04.2]} 4... d5 {[%clk 0:03:04.1]} 5. Qb3 {[%clk 0:03:05.3]}
5... dxc4 {[%clk 0:03:04.1]} 6. Qxc4 {[%clk 0:03:07.2]} 6... O-O {[%clk
0:03:05.1]} 7. e4 {[%clk 0:03:08.2]} 7... Na6 {[%clk 0:03:06.2]} 8. Be2 {[%clk
0:03:00.8]} 8... c5 {[%clk 0:03:06.9]} 9. d5 {[%clk 0:03:00.8]} 9... e6 {[%clk
0:03:08.2]} 10. O-O {[%clk 0:03:00]} 10... exd5 {[%clk 0:03:09.2]} 11. exd5
{[%clk 0:03:01.9]} 11... Bf5 {[%clk 0:03:09.9]} 12. Be3 {[%clk 0:02:45.7]} 12...
Re8 {[%clk 0:03:09.1]} 13. Rac1 {[%clk 0:02:23.1]} 13... Ne4 {[%clk 0:03:00.1]}
14. Rfd1 {[%clk 0:02:09]} 14... Nd6 {[%clk 0:02:51]} 15. Qh4 {[%clk 0:01:59.2]}
15... c4 {[%clk 0:02:22]} 16. Qxd8 {[%clk 0:01:57.2]} 16... Raxd8 {[%clk
0:02:21.9]} 17. Nd4 {[%clk 0:01:57.9]} 17... Bd7 {[%clk 0:02:19.6]} 18. Bf3
{[%clk 0:01:42.5]} 18... Nb4 {[%clk 0:02:11]} 19. Nde2 {[%clk 0:01:06.8]} 19...
Nd3 {[%clk 0:02:07.3]} 20. Rc2 {[%clk 0:01:08.2]} 20... a6 {[%clk 0:01:53.8]}
21. Nf4 {[%clk 0:01:07.5]} 21... Ne5 {[%clk 0:01:49.2]} 22. Be2 {[%clk
0:01:00.5]} 22... b5 {[%clk 0:01:49.2]} 23. Nb1 {[%clk 0:00:51.3]} 23... Ng4
{[%clk 0:01:38.8]} 24. Bc5 {[%clk 0:00:48]} 24... Be5 {[%clk 0:01:38.2]} 25.
Bxg4 {[%clk 0:00:46.3]} 25... Bxg4 {[%clk 0:01:38.6]} 26. f3 {[%clk 0:00:40]}
26... Bf5 {[%clk 0:01:30.7]} 27. Re2 {[%clk 0:00:28]} 27... Bxf4 {[%clk
0:01:29.8]} 28. Bxd6 {[%clk 0:00:29.4]} 28... Bxd6 {[%clk 0:01:30.5]} 29. Rxe8+
{[%clk 0:00:27.9]} 29... Rxe8 {[%clk 0:01:31.3]} 30. Nc3 {[%clk 0:00:29.8]}
30... b4 {[%clk 0:01:28.8]} 31. Ne4 {[%clk 0:00:29.5]} 31... Bxe4 {[%clk
0:01:29.6]} 32. Re1 {[%clk 0:00:28.2]} 32... f5 {[%clk 0:01:28.1]} 33. fxe4
{[%clk 0:00:29.3]} 33... Rxe4 {[%clk 0:01:30]} 34. Rd1 {[%clk 0:00:30.4]} 34...
c3 {[%clk 0:01:30.6]} 35. bxc3 {[%clk 0:00:31.1]} 35... bxc3 {[%clk 0:01:31.9]}
36. Rc1 {[%clk 0:00:33]} 36... Rc4 {[%clk 0:01:32]} 37. Kf2 {[%clk 0:00:34.4]}
37... c2 {[%clk 0:01:31.5]} 0-1

[Event "*** Titled Tuesday Blitz"]
[Site "Chess.com"]
[Date "2018.04.03"]
[Round "2"]
[White "lachesisQ"]
[Black "XDPS"]
[Result "1-0"]
[WhiteElo "2904"]
[BlackElo "2581"]
[TimeControl "180+2"]
[EndTime "13:21:21 PDT"]
[Termination "lachesisQ won by resignation"]

1. e4 {[%clk 0:03:01.9]} 1... c5 {[%clk 0:03:00.9]} 2. Nf3 {[%clk 0:03:01.6]}
2... d6 {[%clk 0:03:02.3]} 3. d4 {[%clk 0:03:02.4]} 3... cxd4 {[%clk 0:03:03.9]}
4. Nxd4 {[%clk 0:02:56.8]} 4... Nf6 {[%clk 0:03:02.7]} 5. Nc3 {[%clk 0:02:57.4]}
5... a6 {[%clk 0:03:04.2]} 6. h3 {[%clk 0:02:57.7]} 6... e5 {[%clk 0:03:02.5]}
7. Nde2 {[%clk 0:02:58]} 7... b5 {[%clk 0:03:00.8]} 8. g4 {[%clk 0:02:56.4]}
8... b4 {[%clk 0:02:50.8]} 9. Nd5 {[%clk 0:02:56.7]} 9... Nxd5 {[%clk
0:02:52.3]} 10. exd5 {[%clk 0:02:58.5]} 10... h5 {[%clk 0:02:51.9]} 11. g5
{[%clk 0:02:59.6]} 11... h4 {[%clk 0:02:52.5]} 12. a3 {[%clk 0:02:59.5]} 12...
bxa3 {[%clk 0:02:51.8]} 13. Rxa3 {[%clk 0:03:01.4]} 13... Nd7 {[%clk 0:02:53.2]}
14. Be3 {[%clk 0:02:46.6]} 14... Rb8 {[%clk 0:02:52.1]} 15. b3 {[%clk
0:02:45.6]} 15... f5 {[%clk 0:02:53]} 16. gxf6 {[%clk 0:02:42.7]} 16... Nxf6
{[%clk 0:02:53.9]} 17. Nc3 {[%clk 0:02:41.2]} 17... Be7 {[%clk 0:02:25.1]} 18.
Bxa6 {[%clk 0:02:41.3]} 18... O-O {[%clk 0:02:18]} 19. Qd3 {[%clk 0:02:20.9]}
19... Nh5 {[%clk 0:02:08.7]} 20. Bxc8 {[%clk 0:02:18.2]} 20... Rxc8 {[%clk
0:02:08.6]} 21. Ra7 {[%clk 0:02:14.5]} 21... Bg5 {[%clk 0:01:54.9]} 22. Rg1
{[%clk 0:02:01.4]} 22... Bxe3 {[%clk 0:01:45.6]} 23. Qxe3 {[%clk 0:02:02.3]}
23... Rc7 {[%clk 0:01:43.8]} 24. Ne4 {[%clk 0:01:46.1]} 24... Rf4 {[%clk
0:01:42.8]} 25. Ra2 {[%clk 0:01:18.7]} 25... Qb8 {[%clk 0:01:14.6]} 26. Kd1
{[%clk 0:01:10.1]} 26... Qb4 {[%clk 0:00:57]} 27. Ra8+ {[%clk 0:01:10.6]} 27...
Kh7 {[%clk 0:00:47.5]} 28. Ng5+ {[%clk 0:01:10]} 28... Kh6 {[%clk 0:00:21.5]}
29. Rh8+ {[%clk 0:01:10.1]} 29... Kg6 {[%clk 0:00:22.8]} 30. Ne6+ {[%clk
0:01:09.9]} 30... Kf6 {[%clk 0:00:22.9]} 31. Rxh5 {[%clk 0:01:08.3]} 1-0

[Event "*** Titled Tuesday Blitz"]
[Site "Chess.com"]
[Date "2018.04.03"]
[Round "2"]
[White "amintabatabaei"]
[Black "MITerryble"]
[Result "0-1"]
[WhiteElo "2639"]
[BlackElo "2658"]
[TimeControl "180+2"]
[EndTime "13:21:25 PDT"]
[Termination "MITerryble won by resignation"]

1. d4 {[%clk 0:03:01.9]} 1... e6 {[%clk 0:02:58.6]} 2. c4 {[%clk 0:02:58]} 2...
Bb4+ {[%clk 0:02:58.8]} 3. Bd2 {[%clk 0:02:57.2]} 3... Qe7 {[%clk 0:02:57.8]} 4.
e4 {[%clk 0:02:55]} 4... Bxd2+ {[%clk 0:02:52.4]} 5. Qxd2 {[%clk 0:02:56.9]}
5... d6 {[%clk 0:02:54.2]} 6. Nc3 {[%clk 0:02:56.3]} 6... Nf6 {[%clk 0:02:50.9]}
7. g3 {[%clk 0:02:45.9]} 7... e5 {[%clk 0:02:50.9]} 8. d5 {[%clk 0:02:45.4]}
8... a5 {[%clk 0:02:50.1]} 9. Bg2 {[%clk 0:02:45.7]} 9... Na6 {[%clk 0:02:51.2]}
10. Nge2 {[%clk 0:02:46.2]} 10... Nc5 {[%clk 0:02:52.3]} 11. O-O {[%clk
0:02:47]} 11... O-O {[%clk 0:02:52.6]} 12. b3 {[%clk 0:02:45.1]} 12... Nh5
{[%clk 0:02:46.9]} 13. f4 {[%clk 0:02:32]} 13... exf4 {[%clk 0:02:43.3]} 14.
Nxf4 {[%clk 0:02:30.7]} 14... Nf6 {[%clk 0:02:41.4]} 15. Rae1 {[%clk 0:02:23.7]}
15... Ng4 {[%clk 0:02:40.7]} 16. Nfe2 {[%clk 0:02:19.3]} 16... Ne5 {[%clk
0:02:37.9]} 17. Nd4 {[%clk 0:02:20]} 17... g6 {[%clk 0:02:35.8]} 18. a3 {[%clk
0:02:17.1]} 18... a4 {[%clk 0:02:30.5]} 19. b4 {[%clk 0:02:00.2]} 19... Nb3
{[%clk 0:02:31.1]} 20. Nxb3 {[%clk 0:01:50.8]} 20... axb3 {[%clk 0:02:32.9]} 21.
Qd4 {[%clk 0:01:48.7]} 21... Rxa3 {[%clk 0:02:32.2]} 22. Nb5 {[%clk 0:01:49.1]}
22... Ra2 {[%clk 0:02:22.5]} 23. Rb1 {[%clk 0:01:46.3]} 23... Bg4 {[%clk
0:02:14.4]} 24. Rxb3 {[%clk 0:01:40.6]} 24... Rfa8 {[%clk 0:01:47.3]} 25. Rb2
{[%clk 0:00:54.6]} 25... Be2 {[%clk 0:01:35.6]} 26. Rc1 {[%clk 0:00:34.9]} 26...
Rxb2 {[%clk 0:01:32.1]} 27. Qxb2 {[%clk 0:00:36.8]} 27... Bxc4 {[%clk
0:01:14.8]} 28. Bf1 {[%clk 0:00:26.5]} 28... Ra2 {[%clk 0:01:12]} 29. Qc3 {[%clk
0:00:24.4]} 29... Qf6 {[%clk 0:01:12.9]} 30. Qe3 {[%clk 0:00:17.2]} 30... Nf3+
{[%clk 0:01:13.4]} 0-1

[Event "*** Titled Tuesday Blitz"]
[Site "Chess.com"]
[Date "2018.04.03"]
[Round "2"]
[White "amatatanav"]
[Black "GMMatamoros"]
[Result "0-1"]
[WhiteElo "2435"]
[BlackElo "2447"]
[TimeControl "180+2"]
[EndTime "13:21:28 PDT"]
[Termination "GMMatamoros won on time"]

1. e4 {[%clk 0:03:01.9]} 1... c5 {[%clk 0:02:59.9]} 2. Ne2 {[%clk 0:03:01.7]}
2... Nc6 {[%clk 0:02:58.6]} 3. Nbc3 {[%clk 0:03:02.1]} 3... e6 {[%clk
0:02:57.3]} 4. d4 {[%clk 0:03:02.8]} 4... cxd4 {[%clk 0:02:59.2]} 5. Nxd4 {[%clk
0:03:04.1]} 5... Qc7 {[%clk 0:03:00.6]} 6. Be3 {[%clk 0:03:04.1]} 6... a6 {[%clk
0:03:00.2]} 7. Qf3 {[%clk 0:03:04.4]} 7... d6 {[%clk 0:02:51.2]} 8. O-O-O {[%clk
0:02:57.5]} 8... Bd7 {[%clk 0:02:52.1]} 9. Qg3 {[%clk 0:02:35.9]} 9... Nf6
{[%clk 0:02:44.1]} 10. f4 {[%clk 0:02:34.6]} 10... b5 {[%clk 0:02:43.5]} 11. a3
{[%clk 0:02:33.3]} 11... Rc8 {[%clk 0:02:40]} 12. Bd3 {[%clk 0:02:16]} 12... b4
{[%clk 0:02:30.7]} 13. axb4 {[%clk 0:02:09.2]} 13... Nxb4 {[%clk 0:02:32.6]} 14.
e5 {[%clk 0:01:45]} 14... dxe5 {[%clk 0:02:24.9]} 15. fxe5 {[%clk 0:01:45.4]}
15... Nfd5 {[%clk 0:02:17.2]} 16. Nxd5 {[%clk 0:01:25.6]} 16... Nxd5 {[%clk
0:02:19.1]} 17. Bxa6 {[%clk 0:00:51.2]} 17... Rb8 {[%clk 0:01:37.6]} 18. Nf5
{[%clk 0:00:40.3]} 18... Nxe3 {[%clk 0:00:58]} 19. Nxe3 {[%clk 0:00:26.8]} 19...
Qb6 {[%clk 0:00:43.7]} 20. Rxd7 {[%clk 0:00:07.4]} 20... Qxb2+ {[%clk
0:00:33.8]} 0-1

[Event "*** Titled Tuesday Blitz"]
[Site "Chess.com"]
[Date "2018.04.03"]
[Round "2"]
[White "Koksik_13"]
[Black "1977Ivan"]
[Result "1-0"]
[WhiteElo "2483"]
[BlackElo "2413"]
[TimeControl "180+2"]
[EndTime "13:21:31 PDT"]
[Termination "Koksik_13 won on time"]

1. e4 {[%clk 0:03:00.3]} 1... c6 {[%clk 0:03:00.5]} 2. d4 {[%clk 0:03:00.9]}
2... d5 {[%clk 0:03:01.4]} 3. Nc3 {[%clk 0:03:02]} 3... dxe4 {[%clk 0:03:02.1]}
4. Nxe4 {[%clk 0:03:03.2]} 4... Nf6 {[%clk 0:03:03.6]} 5. Ng3 {[%clk 0:03:01.4]}
5... h5 {[%clk 0:03:03.3]} 6. h4 {[%clk 0:02:58]} 6... Bg4 {[%clk 0:03:01.5]} 7.
Be2 {[%clk 0:02:58.6]} 7... e6 {[%clk 0:03:02.4]} 8. Nf3 {[%clk 0:02:58.7]} 8...
Nbd7 {[%clk 0:03:01.9]} 9. Bf4 {[%clk 0:02:58.6]} 9... Nd5 {[%clk 0:02:59.1]}
10. Bg5 {[%clk 0:02:57.9]} 10... Be7 {[%clk 0:02:59.4]} 11. Qd2 {[%clk 0:02:54]}
11... Bxg5 {[%clk 0:02:35.3]} 12. Nxg5 {[%clk 0:02:51.9]} 12... Bxe2 {[%clk
0:02:35.6]} 13. Nxe2 {[%clk 0:02:53.8]} 13... b5 {[%clk 0:02:30.9]} 14. O-O-O
{[%clk 0:02:45.1]} 14... N7b6 {[%clk 0:02:31.6]} 15. Qd3 {[%clk 0:02:25.2]}
15... Nc4 {[%clk 0:02:28.1]} 16. b3 {[%clk 0:02:21.3]} 16... Nb4 {[%clk
0:02:07.6]} 17. Qf3 {[%clk 0:02:16]} 17... Nd6 {[%clk 0:01:50.7]} 18. c3 {[%clk
0:02:06.1]} 18... Nd5 {[%clk 0:01:49.2]} 19. Ng3 {[%clk 0:02:06.1]} 19... Qa5
{[%clk 0:01:44.2]} 20. Kb2 {[%clk 0:02:03.8]} 20... b4 {[%clk 0:01:23.6]} 21. c4
{[%clk 0:01:32.2]} 21... Nc3 {[%clk 0:01:20.2]} 22. Ra1 {[%clk 0:01:08.2]} 22...
Ke7 {[%clk 0:00:55.1]} 23. a3 {[%clk 0:01:08.4]} 23... Rab8 {[%clk 0:00:32.7]}
24. axb4 {[%clk 0:01:04.7]} 24... Nxc4+ {[%clk 0:00:27.7]} 25. Kc2 {[%clk
0:00:55.9]} 1-0

[Event "*** Titled Tuesday Blitz"]
[Site "Chess.com"]
[Date "2018.04.03"]
[Round "2"]
[White "jcibarra"]
[Black "LawrenceTrent"]
[Result "0-1"]
[WhiteElo "2675"]
[BlackElo "2537"]
[TimeControl "180+2"]
[EndTime "13:21:43 PDT"]
[Termination "LawrenceTrent won on time"]

1. e4 {[%clk 0:03:01.9]} 1... e5 {[%clk 0:02:58.9]} 2. Nf3 {[%clk 0:03:00.4]}
2... Nc6 {[%clk 0:02:59.9]} 3. d4 {[%clk 0:03:01.7]} 3... exd4 {[%clk
0:02:59.6]} 4. Nxd4 {[%clk 0:03:03.6]} 4... Bb4+ {[%clk 0:02:59.9]} 5. c3 {[%clk
0:03:01.8]} 5... Be7 {[%clk 0:03:01]} 6. Nf5 {[%clk 0:03:00.7]} 6... g6 {[%clk
0:02:51]} 7. Nxe7 {[%clk 0:02:42.5]} 7... Qxe7 {[%clk 0:02:51.8]} 8. Bd3 {[%clk
0:02:43.6]} 8... Nf6 {[%clk 0:02:41]} 9. O-O {[%clk 0:02:44.4]} 9... h6 {[%clk
0:02:19.5]} 10. Re1 {[%clk 0:02:31.5]} 10... d6 {[%clk 0:02:20.4]} 11. Nd2
{[%clk 0:02:29.1]} 11... Bd7 {[%clk 0:02:18.5]} 12. b4 {[%clk 0:02:22.7]} 12...
Ne5 {[%clk 0:02:04]} 13. Bf1 {[%clk 0:02:23.1]} 13... g5 {[%clk 0:02:05.3]} 14.
Nc4 {[%clk 0:02:21.1]} 14... Nxc4 {[%clk 0:01:56.4]} 15. Bxc4 {[%clk 0:02:21.2]}
15... Ng4 {[%clk 0:01:54.5]} 16. Be2 {[%clk 0:02:14.8]} 16... Ne5 {[%clk
0:01:55.5]} 17. c4 {[%clk 0:02:10.8]} 17... O-O {[%clk 0:01:50.3]} 18. Bb2
{[%clk 0:02:08.5]} 18... f5 {[%clk 0:01:50.1]} 19. exf5 {[%clk 0:02:00.8]} 19...
Rxf5 {[%clk 0:01:50.6]} 20. c5 {[%clk 0:01:59.5]} 20... Raf8 {[%clk 0:01:38]}
21. cxd6 {[%clk 0:01:30.1]} 21... cxd6 {[%clk 0:01:37.7]} 22. Bd4 {[%clk
0:00:38.3]} 22... a6 {[%clk 0:01:29]} 23. Bg4 {[%clk 0:00:38.8]} 23... R5f7
{[%clk 0:01:09.1]} 24. Bxd7 {[%clk 0:00:33.9]} 24... Qxd7 {[%clk 0:01:06.4]} 25.
Qh5 {[%clk 0:00:21.1]} 25... Kh7 {[%clk 0:01:01.8]} 26. Bxe5 {[%clk 0:00:18.8]}
26... dxe5 {[%clk 0:01:02.9]} 27. Rxe5 {[%clk 0:00:20.3]} 27... Rxf2 {[%clk
0:01:00.2]} 28. h3 {[%clk 0:00:12.2]} 28... Qd4 {[%clk 0:00:57.8]} 0-1

[Event "*** Titled Tuesday Blitz"]
[Site "Chess.com"]
[Date "2018.04.03"]
[Round "2"]
[White "Arash_Tahbaz"]
[Black "jefferyx"]
[Result "1-0"]
[WhiteElo "2622"]
[BlackElo "2723"]
[TimeControl "180+2"]
[EndTime "13:21:48 PDT"]
[Termination "Arash_Tahbaz won by resignation"]

1. d4 {[%clk 0:03:00.6]} 1... Nf6 {[%clk 0:02:59.7]} 2. c4 {[%clk 0:03:01.5]}
2... g6 {[%clk 0:03:01.1]} 3. f3 {[%clk 0:03:01.9]} 3... e6 {[%clk 0:02:54.9]}
4. Nc3 {[%clk 0:02:59.1]} 4... d5 {[%clk 0:02:55.4]} 5. Bg5 {[%clk 0:02:56.7]}
5... c6 {[%clk 0:02:43.7]} 6. e3 {[%clk 0:02:55.7]} 6... Nbd7 {[%clk 0:02:38.7]}
7. cxd5 {[%clk 0:02:34]} 7... exd5 {[%clk 0:02:39.4]} 8. Bd3 {[%clk 0:02:35.3]}
8... h6 {[%clk 0:02:26.3]} 9. Bh4 {[%clk 0:02:34.5]} 9... Bg7 {[%clk 0:02:22.7]}
10. Nge2 {[%clk 0:02:35.2]} 10... O-O {[%clk 0:02:23.5]} 11. O-O {[%clk
0:02:34.8]} 11... Re8 {[%clk 0:02:23.5]} 12. e4 {[%clk 0:02:34.2]} 12... Qb6
{[%clk 0:02:06.6]} 13. Kh1 {[%clk 0:02:31.8]} 13... Nf8 {[%clk 0:01:42.5]} 14.
Qd2 {[%clk 0:02:14]} 14... Ne6 {[%clk 0:01:41.4]} 15. Bc2 {[%clk 0:01:56.2]}
15... Qxb2 {[%clk 0:01:32.9]} 16. e5 {[%clk 0:01:43.8]} 16... Nh7 {[%clk
0:01:31.3]} 17. f4 {[%clk 0:01:39.4]} 17... Nc7 {[%clk 0:01:26]} 18. a3 {[%clk
0:01:32]} 18... Qb6 {[%clk 0:01:19.3]} 19. Na4 {[%clk 0:01:29.1]} 19... Qa6
{[%clk 0:00:58.1]} 20. Nc5 {[%clk 0:01:29.2]} 20... Qb6 {[%clk 0:00:58.6]} 21.
Rab1 {[%clk 0:01:22.9]} 21... Nb5 {[%clk 0:00:59.5]} 22. a4 {[%clk 0:01:23.9]}
22... a6 {[%clk 0:00:56.2]} 23. f5 {[%clk 0:01:23.8]} 23... Bxf5 {[%clk
0:00:52.7]} 24. Bxf5 {[%clk 0:01:22]} 24... gxf5 {[%clk 0:00:54.6]} 25. axb5
{[%clk 0:01:18.6]} 25... axb5 {[%clk 0:00:56.5]} 26. Rxf5 {[%clk 0:01:19.3]}
26... Nf8 {[%clk 0:00:56.7]} 27. Rbf1 {[%clk 0:01:19.8]} 27... Qc7 {[%clk
0:00:56.2]} 28. Ng3 {[%clk 0:01:19.3]} 28... b6 {[%clk 0:00:56.8]} 29. Nd3
{[%clk 0:01:19.1]} 29... Ra4 {[%clk 0:00:57.6]} 30. Qf4 {[%clk 0:01:16.7]} 30...
Ne6 {[%clk 0:00:58.4]} 31. Qf2 {[%clk 0:01:12.6]} 31... Rf8 {[%clk 0:00:47]} 32.
Nh5 {[%clk 0:01:13.1]} 32... Rxd4 {[%clk 0:00:47.6]} 33. Bf6 {[%clk 0:01:12.8]}
33... Rxd3 {[%clk 0:00:43.2]} 34. Bxg7 {[%clk 0:00:57.1]} 34... Nxg7 {[%clk
0:00:45.1]} 35. Nf6+ {[%clk 0:00:58.1]} 35... Kh8 {[%clk 0:00:46.3]} 36. Qf4
{[%clk 0:00:59.6]} 1-0

[Event "*** Titled Tuesday Blitz"]
[Site "Chess.com"]
[Date "2018.04.03"]
[Round "2"]
[White "spidernv"]
[Black "GMKrikor"]
[Result "0-1"]
[WhiteElo "2349"]
[BlackElo "2647"]
[TimeControl "180+2"]
[EndTime "13:21:48 PDT"]
[Termination "GMKrikor won by resignation"]

1. e4 {[%clk 0:03:00]} 1... c5 {[%clk 0:03:00.3]} 2. Nc3 {[%clk 0:02:59.9]} 2...
e6 {[%clk 0:02:59.2]} 3. g3 {[%clk 0:03:00.8]} 3... d5 {[%clk 0:02:59.8]} 4. Bg2
{[%clk 0:03:02]} 4... dxe4 {[%clk 0:02:56.5]} 5. Nxe4 {[%clk 0:03:03]} 5... Nc6
{[%clk 0:02:57.4]} 6. d3 {[%clk 0:03:04.1]} 6... Be7 {[%clk 0:02:58.2]} 7. f4
{[%clk 0:03:05.2]} 7... Nf6 {[%clk 0:02:55.2]} 8. Ne2 {[%clk 0:03:02.9]} 8...
O-O {[%clk 0:02:53.7]} 9. O-O {[%clk 0:03:03.4]} 9... Qc7 {[%clk 0:02:46]} 10.
h3 {[%clk 0:03:03.8]} 10... Rd8 {[%clk 0:02:42]} 11. Qe1 {[%clk 0:03:05.1]}
11... b6 {[%clk 0:02:41.8]} 12. Be3 {[%clk 0:03:04.7]} 12... Bb7 {[%clk
0:02:41]} 13. a3 {[%clk 0:03:05.1]} 13... Nd4 {[%clk 0:02:36.8]} 14. Rc1 {[%clk
0:02:59.6]} 14... Nxe4 {[%clk 0:02:26.2]} 15. dxe4 {[%clk 0:02:59]} 15... Ba6
{[%clk 0:02:21.3]} 16. Bxd4 {[%clk 0:02:49]} 16... cxd4 {[%clk 0:02:17.3]} 17.
Kh2 {[%clk 0:02:47.9]} 17... Rac8 {[%clk 0:02:16]} 18. Bf3 {[%clk 0:02:44.7]}
18... Qd7 {[%clk 0:01:56.1]} 19. Rg1 {[%clk 0:02:37.5]} 19... d3 {[%clk
0:01:51.6]} 20. cxd3 {[%clk 0:02:36.8]} 20... Qxd3 {[%clk 0:01:52.6]} 21. Kg2
{[%clk 0:02:26.1]} 21... h5 {[%clk 0:01:04.7]} 22. Rxc8 {[%clk 0:02:17.6]} 22...
Rxc8 {[%clk 0:01:04.2]} 23. Qd1 {[%clk 0:02:19]} 23... Rc2 {[%clk 0:00:52.2]}
24. Qxd3 {[%clk 0:02:13.1]} 24... Bxd3 {[%clk 0:00:52.5]} 25. Rc1 {[%clk
0:02:14.1]} 25... Rxb2 {[%clk 0:00:44.8]} 26. Rc8+ {[%clk 0:02:13.5]} 26... Kh7
{[%clk 0:00:45.5]} 27. Kf1 {[%clk 0:02:14.9]} 27... Bxa3 {[%clk 0:00:34.7]} 28.
Bxh5 {[%clk 0:02:15.2]} 28... Bc5 {[%clk 0:00:29.1]} 29. Ke1 {[%clk 0:02:13.1]}
29... Be3 {[%clk 0:00:24.4]} 30. Kf1 {[%clk 0:02:06.4]} 30... a5 {[%clk
0:00:17.9]} 31. Rc3 {[%clk 0:02:06.7]} 31... Rb1+ {[%clk 0:00:19.3]} 32. Kg2
{[%clk 0:02:06.5]} 32... Bxe4+ {[%clk 0:00:20]} 33. Bf3 {[%clk 0:02:04]} 33...
Bxf3+ {[%clk 0:00:21.3]} 34. Kxf3 {[%clk 0:02:05.1]} 34... Bc5 {[%clk
0:00:23.2]} 35. Rd3 {[%clk 0:02:02.3]} 35... a4 {[%clk 0:00:22.9]} 36. Rd7
{[%clk 0:02:03.6]} 36... a3 {[%clk 0:00:22.2]} 37. Ra7 {[%clk 0:02:04.7]} 37...
Rb3+ {[%clk 0:00:21.2]} 38. Kg4 {[%clk 0:02:03.6]} 38... Rb2 {[%clk 0:00:21]}
39. Nc3 {[%clk 0:02:02.9]} 39... Rb3 {[%clk 0:00:18.4]} 40. Ne4 {[%clk
0:02:03.6]} 40... f5+ {[%clk 0:00:19.4]} 41. Kh5 {[%clk 0:02:03.2]} 41... fxe4
{[%clk 0:00:20.9]} 42. g4 {[%clk 0:02:04.5]} 42... Rxh3+ {[%clk 0:00:21.2]} 43.
Kg5 {[%clk 0:02:05.5]} 43... e3 {[%clk 0:00:21.1]} 44. f5 {[%clk 0:02:06.8]}
44... exf5 {[%clk 0:00:22.2]} 45. gxf5 {[%clk 0:02:08]} 45... e2 {[%clk
0:00:20.2]} 46. f6 {[%clk 0:02:09.3]} 46... e1=Q {[%clk 0:00:18.4]} 0-1